bitfinex-derivatives/quotes_ETHF0:USTF0_20241013
["timestamp","ask_amount","ask_price","bid_price","bid_amount"]
[1728857157512,0.40304,2482.0,2481.9,3.92]
[1728857157705,3.5929,2482.3,2481.9,3.92]
[1728857157900,3.2078,2482.3,2481.9,3.92]
[1728857158103,3.2078,2482.3,2482.2,0.403]
[1728857158308,3.2078,2482.6,2482.2,4.0288]
[1728857158506,3.2078,2482.6,2482.4,0.40297]
[1728857158802,0.3851,2482.9,2482.2,4.53948628]
[1728857158803,0.4029,2482.9,2482.5,0.40296]
[1728857159002,0.4029,2482.9,2482.5,8.14243006]
[1728857159201,0.4029,2482.9,2482.5,3.2078]
[1728857159403,0.4029,2482.9,2482.6,0.40294]
[1728857159603,0.4029,2482.9,2482.6,4.93461006]
[1728857160205,0.389,2483.0,2482.6,4.53167006]
[1728857160411,0.40291,2482.8,2482.6,4.53167006]
[1728857160603,3.2078,2482.7,2482.2,4.92748]
[1728857160801,3.2078,2483.1,2482.5,3.2078]
[1728857161005,3.61066,2483.1,2482.8,0.4029]
[1728857161205,3.61066,2483.1,2482.6,0.40293]
[1728857161206,0.4029,2482.9,2482.6,0.40293]
[1728857161405,3.2078,2483.1,2482.5,3.2078]
[1728857161608,3.2078,2483.1,2483.0,0.40287]
[1728857161823,3.2078,2483.1,2483.0,4.0272]
[1728857162111,3.2078,2483.1,2483.0,4.55805239]
[1728857162307,3.2078,2483.1,2482.6,4.3058]
[1728857162501,3.2078,2483.1,2482.8,0.40291]
[1728857162709,3.61067,2483.1,2482.8,0.40291]
[1728857163008,3.61067,2483.1,2482.7,18.32803597]
[1728857163009,0.40287,2483.0,2482.9,8.55359971]
[1728857163208,3.2078,2483.1,2482.5,3.2078]
[1728857163403,3.2078,2483.1,2482.8,8.27851899]
[1728857163404,0.40289,2482.9,2482.8,8.27851899]
[1728857163610,0.40289,2482.9,2482.3,4.32298]
[1728857163611,0.40291,2482.8,2482.7,8.27851899]
[1728857163804,0.40291,2482.8,2482.3,3.92]
[1728857163805,0.40294,2482.6,2482.4,13.0610808]
[1728857164007,0.4191,2483.0,2482.3,3.92]
[1728857164203,0.40288,2483.0,2482.8,0.40291]
[1728857164411,3.2078,2483.1,2482.6,3.92]
[1728857164612,0.4028,2483.5,2482.9,4.31497558]
[1728857164816,3.4108,2483.9,2483.6,0.40278]
[1728857164817,0.40274,2483.9,2483.6,0.40278]
[1728857165313,3.2078,2484.2,2483.7,13.07018116]
[1728857165517,3.61049,2484.2,2483.9,0.40272]
[1728857165713,3.61049,2484.2,2483.7,3.92]
[1728857166011,3.61049,2484.2,2483.9,3.88271]
[1728857166216,0.7924,2484.4,2483.9,3.88271]
[1728857166217,0.7924,2484.4,2483.9,3.48]
[1728857166509,1.00649,2484.8,2484.3,6.6878]
[1728857166510,3.2078,2484.8,2484.3,6.6878]
[1728857166719,3.2078,2484.8,2484.7,3.48]
[1728857166908,3.2078,2484.8,2484.7,7.5048]
[1728857167207,3.2078,2484.8,2484.7,11.81878063]
[1728857167410,0.40254,2485.1,2484.7,11.81878063]
[1728857167712,3.2078,2485.4,2485.0,3.48]
[1728857168012,3.2078,2485.1,2484.3,0.203]
[1728857168214,3.2078,2485.1,2484.0,0.3829]
[1728857168215,0.40267,2484.3,2484.0,3.48]
[1728857168508,3.2078,2484.5,2484.1,12.88861473]
[1728857168509,0.40268,2484.2,2484.1,12.88861473]
[1728857168713,4.21442,2484.5,2484.0,3.48]
[1728857168714,3.2078,2484.5,2484.0,3.48]
[1728857168916,0.40265,2484.4,2484.3,3.48]
[1728857169116,0.40268,2484.2,2484.1,12.88861473]
[1728857169412,1.40526,2484.9,2484.0,3.48]
[1728857169413,0.4027,2484.1,2484.0,3.48]
[1728857169610,0.4027,2484.1,2483.2,0.203]
[1728857169611,3.2078,2484.1,2483.2,0.203]
[1728857169815,3.48,2484.7,2483.3,3.88282]
[1728857169816,0.40275,2483.8,2483.3,3.88282]
[1728857170003,3.2078,2483.9,2483.5,4.33952708]
[1728857170206,3.2078,2483.9,2483.3,3.48]
[1728857170414,0.40281,2483.5,2483.3,3.48]
[1728857170718,0.40281,2483.5,2483.4,12.62044571]
[1728857171012,0.8289,2484.3,2483.4,27.86426997]
[1728857171013,3.2078,2484.2,2483.4,27.86426997]
[1728857171211,1.00668,2484.3,2483.7,3.48]
[1728857171417,3.2078,2484.3,2483.7,3.48]
[1728857171611,3.2078,2484.0,2483.7,3.48]
[1728857171915,3.2078,2484.0,2483.4,3.2078]
[1728857171916,0.40277,2483.7,2483.5,3.92]
[1728857172211,0.40273,2483.9,2483.8,4.26910775]
[1728857172515,1.40801,2484.5,2483.5,3.92]
[1728857172516,0.40277,2483.7,2483.5,3.92]
[1728857173013,1.40801,2484.5,2483.5,3.92]
[1728857173014,3.2078,2484.0,2483.6,21.89026059]
[1728857173208,3.2078,2484.2,2483.8,0.40273]
[1728857173408,3.2078,2484.2,2483.6,18.26663059]
[1728857173409,0.40273,2483.9,2483.6,18.26663059]
[1728857173614,0.40273,2483.9,2483.6,17.86386059]
[1728857173819,0.4027,2484.1,2483.8,0.40274]
[1728857175212,0.40271,2484.0,2483.7,3.61055]
[1728857175516,3.2078,2484.2,2483.8,12.63252245]
[1728857175715,0.40274,2483.9,2483.8,12.63252245]
[1728857176108,4.0264,2483.9,2483.7,3.2078]
[1728857176320,0.40274,2483.8,2483.7,3.2078]
[1728857178717,4.21452,2484.2,2483.7,12.46703107]
[1728857178718,3.2078,2484.2,2483.7,12.46703107]
[1728857178912,3.2078,2484.2,2484.1,0.4027]
[1728857179321,3.2078,2484.2,2484.1,5.07384546]
[1728857179912,0.40265,2484.4,2484.1,5.07384546]
[1728857180116,3.2078,2484.5,2484.1,4.67114546]
[1728857180312,0.40271,2484.0,2483.9,3.92]
[1728857180513,1.00663,2484.4,2483.7,3.2078]
[1728857180514,3.2078,2484.1,2483.7,3.2078]
[1728857180721,0.40274,2483.8,2483.7,3.2078]
[1728857180917,1.00679,2484.0,2483.5,3.92]
[1728857181119,0.40283,2483.3,2483.2,3.92]
[1728857181511,0.40283,2483.3,2483.2,12.46596585]
[1728857182525,0.40283,2483.3,2483.2,8.54596585]
[1728857182526,4.43003,2483.3,2483.2,8.54596585]
[1728857183224,0.40283,2483.3,2483.2,8.54596585]
[1728857183822,0.40279,2483.6,2483.3,0.40283]
[1728857184010,0.40279,2483.6,2483.2,12.46596585]
[1728857184215,0.40279,2483.6,2483.4,8.58449075]
[1728857184517,0.40279,2483.5,2483.3,8.5537607]
[1728857184717,0.40279,2483.5,2483.3,0.40282]
[1728857185016,0.40279,2483.5,2483.3,8.9565807]
[1728857185017,0.4028,2483.5,2483.3,8.9565807]
[1728857185221,0.40281,2483.4,2483.3,8.5537607]
[1728857186221,0.40279,2483.5,2483.4,0.40281]
[1728857186520,3.2078,2483.5,2483.4,8.3680039]
[1728857186727,13.63699,2483.5,2483.4,7.7332039]
[1728857186918,0.40289,2482.9,2482.8,3.2078]
[1728857187121,0.40289,2482.9,2482.8,3.40934229]
[1728857187430,3.2078,2483.5,2482.6,3.61073]
[1728857187631,0.40292,2482.8,2482.7,0.20156061]
[1728857189024,0.403,2482.2,2482.1,3.2078]
[1728857189240,1.00737,2482.6,2481.8,0.40306]
[1728857189241,0.40305,2482.0,2481.8,0.40306]
[1728857189424,0.40302,2482.1,2482.0,8.3428604]
[1728857189625,0.40302,2482.1,2481.9,8.3428604]
[1728857189626,0.40304,2482.0,2481.9,8.3428604]
[1728857189934,1.00752,2482.2,2481.8,8.3428604]
[1728857189935,0.40305,2481.9,2481.8,8.3428604]
[1728857190328,0.40305,2481.9,2481.7,3.2078]
[1728857190628,0.40305,2481.9,2481.8,8.22893077]
[1728857190931,0.40307,2481.8,2481.7,3.2078]
[1728857191327,4.43267,2481.8,2481.7,3.2078]
[1728857192024,0.40307,2481.8,2481.7,3.2078]
[1728857192428,4.43267,2481.8,2481.7,3.2078]
[1728857192932,0.40307,2481.8,2481.7,3.2078]
[1728857195031,0.40307,2481.8,2481.5,0.40312]
[1728857195032,1.00775,2481.7,2481.1,0.40317]
[1728857195332,0.40314,2481.4,2481.1,8.62542648]
[1728857195526,0.40314,2481.4,2481.1,8.22225648]
[1728857195731,0.4117,2482.0,2481.0,3.2078]
[1728857195732,0.40318,2481.1,2481.0,3.2078]
[1728857195932,0.40318,2481.1,2480.5,0.60627]
[1728857195933,3.2078,2481.2,2480.5,3.61107]
[1728857196232,3.2078,2481.2,2480.5,3.2078]
[1728857196233,0.40326,2480.7,2480.5,3.2078]
[1728857196432,1.00801,2481.0,2480.3,0.4076]
[1728857196433,3.2078,2480.9,2480.3,3.6154]
[1728857196834,0.40326,2480.6,2480.5,8.505246]
[1728857197031,0.40328,2480.5,2480.4,8.505246]
[1728857197225,0.40328,2480.5,2480.3,8.505246]
[1728857197226,4.0312,2480.5,2480.3,8.505246]
[1728857197431,0.4033,2480.4,2480.0,7.1278]
[1728857197728,4.21602,2480.5,2479.8,0.40338]
[1728857197729,0.40335,2480.1,2479.8,0.40338]
[1728857198135,0.40335,2480.1,2479.9,12.75119137]
[1728857198433,0.40336,2480.0,2479.9,8.34461374]
[1728857198836,13.2398,2480.0,2479.5,0.40344]
[1728857199032,13.2398,2480.0,2479.4,3.2078]
[1728857199033,3.2078,2480.0,2479.4,3.2078]
[1728857199228,0.7753,2480.3,2479.2,0.40348]
[1728857199229,0.40345,2479.5,2479.2,0.40348]
[1728857199431,3.2078,2479.7,2479.3,8.69263347]
[1728857199432,0.40347,2479.4,2479.3,8.69263347]
[1728857199629,0.4035,2479.2,2478.9,7.94763]
[1728857200031,0.4035,2479.2,2479.0,8.69263347]
[1728857200226,0.203,2480.1,2479.0,8.69263347]
[1728857200227,3.2078,2479.3,2479.0,8.69263347]
[1728857200427,0.40352,2479.0,2478.9,3.2078]
[1728857200839,3.2078,2479.3,2478.9,3.2078]
[1728857201035,0.40352,2479.1,2478.9,3.2078]
[1728857201336,3.2078,2479.3,2478.9,3.2078]
[1728857201729,0.40352,2479.1,2478.9,3.2078]
[1728857202140,3.2078,2479.3,2478.9,3.2078]
[1728857202437,0.40351,2479.1,2478.9,3.2078]
[1728857202624,0.40352,2479.0,2478.9,3.2078]
[1728857203030,4.43712,2479.0,2478.9,3.2078]
[1728857203226,0.40356,2478.8,2478.6,3.2078]
[1728857203638,0.40355,2478.9,2478.6,3.2078]
[1728857204139,0.40357,2478.7,2478.6,3.2078]
[1728857204934,0.4036,2478.6,2478.3,3.61143]
[1728857205336,3.2078,2479.0,2478.3,3.2078]
[1728857205548,4.21679,2478.6,2477.9,3.2078]
[1728857205753,0.40366,2478.2,2477.8,0.40371]
[1728857206234,4.21679,2478.6,2477.6,3.2078]
[1728857206235,4.21678,2478.6,2477.6,3.2078]
[1728857206437,0.40367,2478.2,2477.8,0.40371]
[1728857206834,0.40367,2478.2,2477.0,0.203]
[1728857206835,3.2078,2477.9,2477.0,0.203]
[1728857207038,3.2078,2477.9,2476.8,3.2078]
[1728857207039,3.61157,2477.6,2477.1,0.40383]
[1728857207452,3.61157,2477.6,2476.8,3.2078]
[1728857207646,3.61157,2477.6,2477.2,0.40382]
[1728857208151,3.61157,2477.6,2476.9,0.40386]
[1728857208152,0.40381,2477.3,2476.9,0.40386]
[1728857208845,4.0368,2477.3,2476.8,3.2078]
[1728857209050,3.61161,2477.3,2476.8,3.61168]
[1728857209248,0.40382,2477.2,2476.8,3.61168]
[1728857209750,0.40384,2477.1,2476.8,3.2078]
[1728857209956,0.40382,2477.2,2476.8,3.61168]
[1728857210348,3.61161,2477.3,2476.8,3.61168]
[1728857210746,3.61161,2477.3,2476.8,3.2078]
[1728857211045,3.61161,2477.3,2476.9,0.40386]
[1728857211439,7.64841,2477.3,2476.9,0.40386]
[1728857211652,7.2446,2477.3,2476.8,3.2078]
[1728857211839,3.2078,2477.6,2477.5,0.40377]
[1728857212148,0.4135,2477.9,2477.1,3.2078]
[1728857212351,3.2078,2478.1,2477.8,0.4037]
[1728857212549,4.0352,2478.0,2477.9,0.4037]
[1728857212738,3.2078,2478.1,2477.3,1.00951]
[1728857213044,3.2078,2478.1,2477.8,0.40371]
[1728857213448,0.4037,2478.0,2477.1,3.2078]
[1728857213644,0.4037,2478.0,2477.1,4.21739]
[1728857213844,0.4037,2478.0,2477.2,4.30095284]
[1728857214143,3.2078,2477.8,2477.6,0.40374]
[1728857214445,0.4037,2478.0,2477.6,0.40374]
[1728857215651,0.4037,2478.0,2477.1,4.21739]
[1728857215652,4.036,2477.9,2477.3,0.4038]
[1728857215845,0.40374,2477.7,2477.2,0.40381]
[1728857216044,4.21711,2477.8,2477.1,3.61162]
[1728857216243,3.2078,2477.8,2477.1,3.2078]
[1728857216447,0.4038,2477.4,2477.1,3.2078]
[1728857216642,0.4038,2477.4,2477.1,3.61163]
[1728857217046,1.82825,2477.7,2477.1,3.2078]
[1728857217249,0.40378,2477.5,2477.2,0.40381]
[1728857217445,1.82825,2477.7,2477.1,3.2078]
[1728857217446,0.40379,2477.4,2477.1,3.61162]
[1728857218349,0.40379,2477.4,2476.8,3.61167]
[1728857218350,0.40384,2477.1,2476.8,3.61167]
[1728857218553,3.2078,2477.5,2476.8,3.2078]
[1728857218752,0.40386,2477.0,2476.8,3.2078]
[1728857219245,4.44146,2477.0,2476.8,3.2078]
[1728857219451,4.44146,2477.0,2476.5,0.4088]
[1728857219452,4.0376,2476.9,2476.5,0.40392]
[1728857219645,0.40391,2476.7,2476.4,0.40394]
[1728857219850,0.40389,2476.8,2476.0,4.21784]
[1728857220054,0.40389,2476.8,2476.0,17.18010096]
[1728857220247,0.40389,2476.8,2476.5,0.40392]
[1728857220650,0.40389,2476.8,2476.0,17.18010096]
[1728857220651,0.40391,2476.7,2476.4,0.40394]
[1728857220950,0.40392,2476.6,2476.3,0.40395]
[1728857221156,0.40394,2476.5,2476.2,0.40397]
[1728857221350,1.00972,2476.8,2476.0,3.2078]
[1728857221351,0.40397,2476.3,2476.0,3.6118]
[1728857221549,0.40398,2476.2,2476.0,3.6118]
[1728857221743,0.81018,2476.8,2476.5,0.40392]
[1728857221944,4.0376,2476.8,2476.6,0.40391]
[1728857222247,3.61167,2476.9,2476.8,0.40388]
[1728857222248,3.2078,2476.9,2476.8,0.40388]
[1728857222443,7.2454,2476.9,2476.7,0.40389]
[1728857222649,3.61162,2477.2,2476.8,0.40388]
[1728857222954,0.40379,2477.4,2476.9,0.40385]
[1728857223153,1.00944,2477.5,2476.9,0.40385]
[1728857223353,0.40382,2477.2,2476.9,0.40385]
[1728857223543,3.6309,2477.6,2476.5,0.3917]
[1728857223748,3.2078,2477.2,2476.6,3.2078]
[1728857223956,3.2078,2477.2,2477.0,0.40384]
[1728857224452,0.4038,2477.3,2477.0,0.40384]
[1728857224865,3.61158,2477.5,2477.1,0.40382]
[1728857225158,3.61158,2477.5,2476.7,0.399]
[1728857225159,0.40379,2477.4,2477.2,0.40382]
[1728857225354,4.44059,2477.4,2477.2,0.40382]
[1728857225555,4.0368,2477.3,2477.2,0.40382]
[1728857226552,4.0368,2477.3,2477.1,0.40383]
[1728857226762,4.4406,2477.3,2477.1,0.40383]
[1728857227058,0.4038,2477.4,2477.1,0.40383]
[1728857228059,0.4038,2477.3,2477.1,0.40383]
[1728857228359,0.4038,2477.4,2477.2,0.40381]
[1728857229966,3.2078,2477.5,2476.7,0.399]
[1728857230152,3.61145,2478.3,2478.0,0.40368]
[1728857230351,0.40365,2478.3,2477.5,3.6152]
[1728857230565,3.49,2478.1,2477.5,4.0054]
[1728857230759,0.40374,2477.7,2477.5,0.7976]
[1728857231558,0.40378,2477.5,2477.2,0.4038]
[1728857231761,0.40371,2477.9,2477.7,0.40373]
[1728857232053,4.21693,2478.3,2477.4,3.2078]
[1728857232358,0.4037,2478.0,2477.7,0.40373]
[1728857232552,3.2078,2478.3,2477.4,3.2078]
[1728857232753,0.4062,2478.4,2477.6,1.00939]
[1728857232954,0.40361,2478.5,2478.2,0.40365]
[1728857233554,0.40361,2478.5,2478.3,0.40364]
[1728857233761,3.2078,2478.6,2477.7,4.037]
[1728857233963,4.21679,2478.6,2478.1,0.40367]
[1728857234154,4.21679,2478.6,2477.7,4.037]
[1728857234155,0.40363,2478.4,2478.2,0.40365]
[1728857234351,0.40363,2478.4,2478.1,0.40366]
[1728857234658,0.40364,2478.3,2478.1,0.40366]
[1728857235160,3.6301,2478.9,2478.0,3.2078]
[1728857235365,1.0089,2478.8,2478.1,0.40367]
[1728857235559,1.00897,2478.7,2478.1,0.40367]
[1728857235761,3.6301,2478.9,2478.0,3.2078]
[1728857235952,3.2078,2478.7,2478.5,0.40359]
[1728857236156,0.4036,2478.6,2478.4,0.40361]
[1728857236355,3.2078,2478.7,2478.4,0.40361]
[1728857236356,3.61138,2478.7,2478.4,0.40361]
[1728857237162,0.4036,2478.6,2478.0,3.2078]
[1728857237361,0.4036,2478.6,2478.4,0.40362]
[1728857237563,3.2078,2478.7,2478.4,0.40362]
[1728857237864,3.2078,2478.7,2478.0,3.2078]
[1728857238065,3.2078,2478.7,2478.5,0.4036]
[1728857238370,3.2078,2478.7,2478.3,0.40363]
[1728857238561,3.2078,2478.7,2478.4,0.40362]
[1728857238562,0.4036,2478.6,2478.4,0.40362]
[1728857238757,3.61138,2478.7,2478.5,0.4036]
[1728857239064,3.2078,2478.7,2478.5,0.4036]
[1728857239759,3.61138,2478.7,2478.5,0.4036]
[1728857239954,3.2078,2478.7,2478.0,4.217]
[1728857240158,1.00879,2479.1,2478.6,0.40358]
[1728857240159,0.40356,2478.8,2478.6,0.40358]
[1728857240555,3.2078,2479.2,2478.8,0.40355]
[1728857240556,0.40354,2479.0,2478.8,0.40355]
[1728857240860,0.40353,2479.0,2478.8,0.40355]
[1728857241064,4.43793,2479.0,2478.8,0.40355]
[1728857241253,0.40352,2479.1,2478.8,0.40355]
[1728857241655,3.2078,2479.2,2478.8,0.40355]
[1728857241656,0.40353,2479.0,2478.8,0.40355]
[1728857243061,4.43793,2479.0,2478.4,0.7891]
[1728857243368,0.40358,2478.7,2478.5,0.52978033]
[1728857243571,0.40359,2478.7,2478.4,1.19271]
[1728857244070,0.40359,2478.7,2478.5,0.52979558]
[1728857244367,0.40359,2478.7,2478.5,0.4036]
[1728857244571,0.40359,2478.7,2478.6,0.12619834]
[1728857245161,0.40359,2478.7,2478.4,1.19271]
[1728857245162,4.0344,2478.7,2478.4,0.3832]
[1728857245463,0.4036,2478.6,2478.5,0.12620316]
[1728857245866,4.438,2478.6,2478.5,0.12620316]
[1728857246171,0.40363,2478.4,2478.2,3.61145]
[1728857246365,4.21675,2478.7,2478.2,3.61144]
[1728857246566,0.40362,2478.5,2478.2,3.61144]
[1728857246763,4.21675,2478.7,2478.2,3.61144]
[1728857247264,0.40363,2478.4,2478.2,3.61144]
[1728857247465,0.40364,2478.3,2478.2,3.2078]
[1728857247867,4.43884,2478.3,2478.2,3.2078]
[1728857248279,10.43884,2478.3,2478.2,3.2078]
[1728857248669,0.40363,2478.4,2478.2,3.61144]
[1728857248972,0.40364,2478.3,2478.2,3.2078]
[1728857249173,4.43884,2478.3,2478.2,3.2078]
[1728857253388,10.0352,2478.3,2477.8,0.40371]
[1728857253583,0.40369,2478.0,2477.8,0.40371]
[1728857253788,3.49,2477.9,2477.4,3.2078]
[1728857254086,0.40385,2477.0,2476.9,0.774]
[1728857254383,4.49939,2477.6,2476.6,3.2078]
[1728857254384,0.40387,2476.9,2476.6,3.2078]
[1728857254585,0.40387,2476.9,2476.6,3.61171]
[1728857254888,4.21735,2477.2,2476.6,3.2078]
[1728857254889,1.00959,2477.1,2476.6,3.2078]
[1728857255077,0.4039,2476.7,2476.6,3.2078]
[1728857255386,0.4039,2476.7,2476.3,0.40396]
[1728857255387,3.2078,2476.9,2476.3,3.2078]
[1728857255586,0.40394,2476.5,2476.3,3.2078]
[1728857255986,0.40395,2476.4,2476.3,3.2078]
[1728857256184,0.40394,2476.5,2476.3,3.2078]
[1728857256382,3.49,2476.7,2476.3,3.2078]
[1728857256383,0.40395,2476.4,2476.3,3.2078]
[1728857256578,3.49,2476.7,2475.6,0.3816]
[1728857256579,6.6978,2476.5,2475.6,3.2078]
[1728857256780,6.6978,2476.5,2475.1,1.55966878]
[1728857256781,0.40404,2475.9,2475.3,3.6017]
[1728857256987,0.40404,2475.9,2475.4,0.4041]
[1728857256988,3.61184,2475.9,2475.4,0.4041]
[1728857257185,3.2078,2475.9,2475.4,0.40411]
[1728857257682,3.2078,2475.9,2475.8,0.40405]
[1728857258489,3.49,2476.3,2475.9,0.40402]
[1728857258688,3.2078,2476.4,2475.6,3.2078]
[1728857259188,3.2078,2476.4,2476.0,0.40401]
[1728857259387,3.61176,2476.4,2475.9,0.40402]
[1728857259884,3.61176,2476.4,2475.6,3.2078]
[1728857259885,0.40398,2476.3,2475.8,0.40404]
[1728857260284,0.40398,2476.3,2475.7,0.40406]
[1728857260492,0.40398,2476.3,2475.9,0.40402]
[1728857260991,3.2078,2476.4,2475.6,3.2078]
[1728857261197,3.2078,2476.4,2476.1,0.40399]
[1728857262080,3.2078,2476.4,2476.0,0.404]
[1728857262081,3.61175,2476.4,2476.0,0.404]
[1728857262284,0.40397,2476.3,2476.0,0.404]
[1728857262491,3.61176,2476.4,2476.0,0.404]
[1728857263693,3.61176,2476.4,2476.1,0.40399]
[1728857263694,3.2078,2476.4,2476.1,0.40399]
[1728857263993,3.61175,2476.4,2476.1,0.40399]
[1728857264495,3.2078,2476.4,2476.1,0.40399]
[1728857264789,3.2078,2476.4,2475.6,3.2078]
[1728857264995,3.2078,2476.4,2476.2,0.40397]
[1728857265698,3.2078,2476.4,2475.7,1.01016]
[1728857265897,3.61175,2476.4,2475.6,3.2078]
[1728857266085,3.61175,2476.4,2476.0,0.404]
[1728857266602,0.40397,2476.3,2476.0,0.404]
[1728857266792,3.49,2476.3,2475.6,3.2078]
[1728857267000,3.49,2476.3,2475.9,0.40403]
[1728857267001,0.40399,2476.2,2475.9,0.40403]
[1728857267201,0.404,2476.1,2475.8,0.40404]
[1728857267496,3.49,2476.3,2475.9,0.40403]
[1728857267497,0.40399,2476.2,2475.9,0.40403]
[1728857267899,4.44239,2476.2,2475.9,0.40403]
[1728857269094,0.404,2476.1,2475.8,0.40404]
[1728857269294,4.0384,2476.2,2475.9,0.40402]
[1728857269295,0.40399,2476.2,2475.9,0.40402]
[1728857269807,4.0384,2476.2,2476.0,0.40401]
[1728857270101,3.89397,2476.3,2476.0,0.40401]
[1728857270298,4.0384,2476.2,2476.0,0.40401]
[1728857270496,4.0384,2476.2,2475.6,3.2078]
[1728857270692,3.49,2476.3,2475.6,3.2078]
[1728857270898,0.40399,2476.2,2475.6,3.2078]
[1728857271101,0.40399,2476.2,2476.0,0.40401]
[1728857271595,4.0384,2476.1,2476.0,0.40401]
[1728857271997,0.40399,2476.2,2476.0,0.40401]
[1728857272198,4.0384,2476.1,2475.9,0.40402]
[1728857272505,0.40399,2476.2,2475.9,0.40402]
[1728857273500,0.40399,2476.2,2476.0,0.40401]
[1728857273901,4.0384,2476.1,2476.0,0.40401]
[1728857274199,7.10177,2476.3,2476.0,0.40401]
[1728857274793,0.40398,2476.2,2476.0,0.40401]
[1728857276699,6.6978,2476.3,2475.7,4.21794]
[1728857276913,3.2078,2476.3,2475.7,4.21794]
[1728857277098,3.2078,2476.3,2476.1,0.40398]
[1728857277298,3.2078,2476.3,2476.2,0.40398]
[1728857277708,7.2462,2476.3,2476.2,0.40398]
[1728857278112,4.0384,2476.3,2476.2,0.40398]
[1728857279923,3.49,2476.8,2476.3,0.40396]
[1728857280207,3.49,2476.8,2476.2,4.0384]
[1728857280208,3.49,2476.8,2476.0,3.2078]
[1728857280403,0.40393,2476.6,2476.3,0.40396]
[1728857280604,0.40393,2476.6,2476.4,0.40394]
[1728857280916,3.61171,2476.7,2476.5,0.40393]
[1728857281106,0.40392,2476.6,2476.4,0.40394]
[1728857281307,3.2078,2476.7,2476.1,1.01]
[1728857281509,3.2078,2476.7,2476.6,0.40392]
[1728857282015,3.2078,2476.7,2476.2,1.00996]
[1728857282016,0.40386,2477.0,2476.8,0.40387]
[1728857282207,6.6978,2477.1,2476.3,3.2078]
[1728857282407,0.40389,2476.8,2476.5,0.40392]
[1728857282611,1.00963,2477.0,2476.5,0.40392]
[1728857282815,0.4039,2476.7,2476.5,0.40392]
[1728857283212,0.40393,2476.6,2476.4,0.40395]
[1728857284113,3.49,2476.8,2476.3,3.2078]
[1728857284411,4.21741,2477.1,2476.4,0.40394]
[1728857284412,0.40391,2476.7,2476.4,0.40394]
[1728857284912,6.6978,2476.8,2476.4,0.40394]
[1728857285119,0.40392,2476.6,2476.4,0.40394]
[1728857285317,0.40394,2476.5,2476.3,3.61176]
[1728857285512,0.40394,2476.5,2476.3,3.2078]
[1728857285513,0.40395,2476.4,2476.3,3.2078]
[1728857285714,0.40395,2476.4,2475.5,3.2078]
[1728857285715,4.0384,2476.4,2475.5,3.2078]
[1728857285913,0.40404,2475.9,2475.5,3.2078]
[1728857286118,0.40404,2475.9,2475.6,0.40408]
[1728857287119,0.40404,2475.9,2475.5,3.2078]
[1728857287120,3.2078,2476.1,2475.5,3.2078]
[1728857287415,0.40401,2476.1,2475.8,0.40404]
[1728857288119,0.40401,2476.1,2475.8,0.40403]
[1728857288309,0.40401,2476.1,2475.6,0.3925]
[1728857288512,0.40401,2476.1,2475.8,0.40405]
[1728857289013,0.40401,2476.1,2475.9,0.40403]
[1728857289215,0.404,2476.2,2475.9,0.40403]
[1728857289517,6.6978,2476.4,2476.0,0.40401]
[1728857289709,0.40398,2476.2,2476.0,0.40401]
[1728857289910,6.6978,2476.4,2476.1,0.40399]
[1728857289911,3.61176,2476.4,2476.1,0.40399]
[1728857290213,0.40397,2476.3,2476.1,0.40399]
[1728857290415,0.40397,2476.3,2476.0,0.404]
[1728857290618,3.2078,2476.4,2475.7,0.3828]
[1728857290820,0.40402,2476.0,2475.8,0.40404]
[1728857291020,0.40401,2476.1,2475.8,0.40404]
[1728857291321,0.40402,2476.0,2475.8,0.40404]
[1728857291711,1.00992,2476.3,2475.8,0.40404]
[1728857291918,0.40401,2476.1,2475.8,0.40404]
[1728857292319,1.00992,2476.3,2475.7,0.3828]
[1728857292616,0.40403,2476.0,2475.7,0.78685]
[1728857292816,0.40403,2476.0,2475.7,0.3828]
[1728857293014,0.40403,2476.0,2475.8,0.40404]
[1728857293411,1.00992,2476.3,2475.8,0.40405]
[1728857293412,0.404,2476.1,2475.8,0.40405]
[1728857293609,0.40402,2476.0,2475.8,0.40405]
[1728857294316,1.00992,2476.3,2475.7,0.3828]
[1728857294514,0.404,2476.1,2475.8,0.40405]
[1728857295420,1.00992,2476.3,2475.8,0.40405]
[1728857295720,0.40401,2476.0,2475.8,0.40405]
[1728857296216,3.61181,2476.0,2475.8,0.40405]
[1728857296419,3.2078,2476.3,2475.7,0.3828]
[1728857296612,1.00996,2476.2,2475.7,0.3828]
[1728857296814,1.00996,2476.2,2475.0,1.41041]
[1728857296815,0.4041,2475.5,2475.3,0.40412]
[1728857297117,1.01012,2475.8,2475.2,3.2078]
[1728857297319,1.01012,2475.8,2475.1,0.3945]
[1728857297320,0.40413,2475.3,2475.1,0.79865]
[1728857297624,3.2078,2475.6,2475.1,0.3945]
[1728857297829,3.61188,2475.6,2475.3,0.40411]
[1728857298121,0.40408,2475.6,2475.3,0.40411]
[1728857298324,0.40406,2475.8,2475.5,0.40409]
[1728857299224,3.2078,2475.9,2475.7,0.40406]
[1728857299622,3.2078,2475.9,2475.8,0.40405]
[1728857300224,3.61183,2475.9,2475.7,0.40406]
[1728857300431,3.2078,2475.9,2475.8,0.40405]
[1728857300623,5.30577667,2475.9,2475.4,1.01029]
[1728857300817,5.30577667,2475.9,2475.8,0.40405]
[1728857301726,3.2078,2475.9,2475.7,0.40405]